fUSD/lending_fUSD_20250812
["ID","MTS","AMOUNT","RATE_DAILY","PERIOD"]
[378790448,1755017454430,-151.0,0.00037362,7]
[378790449,1755017454439,-151.0,0.00037362,7]
[378790450,1755017454448,-151.0,0.00037362,7]
[378790451,1755017454457,-54859.71656511,0.00037362,2]
[378790452,1755017454466,-84269.7560234,0.00037362,2]
[378790453,1755017454475,-187841.83248782,0.00037362,2]
[378790454,1755017454488,-30409.5404613,0.00037362,2]
[378790455,1755017454497,-23010.29045175,0.00037362,2]
[378790456,1755017454506,-401482.16875943,0.00037362,2]
[378790457,1755017455130,-202.07065295,0.00030386,2]
[378790458,1755017455139,-169.70143009,0.00037262,15]
[378790459,1755017455148,-2143.02783042,0.00037362,2]
[378790460,1755017455163,-9651.26729487,0.00037362,2]
[378790461,1755017455174,-59815.0,0.00037362,2]
[378790462,1755017455184,-56998.9536611,0.00037362,2]
[378790463,1755017455204,-737.40217632,0.00037362,2]
[378790480,1755017470446,-999.0,0.00037361,120]
[378790481,1755017470494,-999.0,0.00038457,120]
[378790482,1755017470544,-1021.0,0.00040624,60]
[378790483,1755017470596,-403.5296489,0.00041095,61]
[378790484,1755017470886,-739.45,0.00043835,120]
[378790485,1755017470931,-400.0,0.00043835,120]
[378790486,1755017470977,-400.0,0.00043835,120]
[378790487,1755017471022,-615.15,0.00043835,120]
[378790488,1755017471067,-400.0,0.00043835,120]
[378790489,1755017471113,-1164.76,0.00043835,120]
[378790490,1755017471157,-1266.5,0.00043835,120]
[378790491,1755017471201,-400.0,0.00043835,120]
[378790492,1755017471245,-151.4,0.00043835,120]
[378790493,1755017471288,-400.0,0.00043835,120]
[378790494,1755017471330,-400.0,0.00043835,120]
[378790495,1755017471375,-400.0,0.00043835,120]
[378790496,1755017471420,-772.05,0.00043835,120]
[378790497,1755017471464,-730.54,0.00043835,120]
[378790498,1755017471507,-491.88,0.00043835,120]
[378790499,1755017471549,-3352.61,0.00043835,120]
[378790500,1755017471593,-2120.63,0.00043835,120]
[378790501,1755017471638,-400.0,0.00043835,120]
[378790502,1755017471683,-739.45,0.00044109,120]
[378790503,1755017471727,-400.0,0.00044109,120]
[378790504,1755017471769,-400.0,0.00044109,120]
[378790505,1755017471810,-615.15,0.00044109,120]
[378790506,1755017471852,-400.0,0.00044109,120]
[378790507,1755017471894,-1164.76,0.00044109,120]
[378790508,1755017471938,-1266.5,0.00044109,120]
[378790509,1755017471980,-400.0,0.00044109,120]
[378790510,1755017472022,-400.0,0.00044109,120]
[378790511,1755017472065,-400.0,0.00044109,120]
[378790512,1755017472108,-772.05,0.00044109,120]
[378790513,1755017472149,-730.54,0.00044109,120]
[378790514,1755017472190,-491.88,0.00044109,120]
[378790516,1755017472228,-3352.61,0.00044109,120]
[378790517,1755017472268,-2120.63,0.00044109,120]
[378790518,1755017472308,-400.0,0.00044109,120]
[378790519,1755017472351,-739.45,0.00044383,120]
[378790520,1755017472393,-400.0,0.00044383,120]
[378790521,1755017472434,-400.0,0.00044383,120]
[378790522,1755017472475,-615.15,0.00044383,120]
[378790523,1755017472514,-368.08,0.00044383,120]
[378790524,1755017472555,-1164.76,0.00044383,120]
[378790525,1755017472598,-1266.5,0.00044383,120]
[378790526,1755017472642,-400.0,0.00044383,120]
[378790527,1755017472685,-400.0,0.00044383,120]
[378790528,1755017472727,-400.0,0.00044383,120]
[378790529,1755017472771,-772.05,0.00044383,120]
[378790530,1755017472816,-730.54,0.00044383,120]
[378790532,1755017472864,-491.88,0.00044383,120]
[378790534,1755017472908,-3352.61,0.00044383,120]
[378790535,1755017472953,-2120.63,0.00044383,120]
[378790536,1755017472999,-400.0,0.00044383,120]
[378790537,1755017473046,-371.2,0.00044526,120]
[378790538,1755017473093,-791.96,0.00044657,120]
[378790539,1755017473137,-739.45,0.00044657,120]
[378790540,1755017473181,-400.0,0.00044657,120]
[378790541,1755017473224,-400.0,0.00044657,120]
[378790542,1755017473266,-615.15,0.00044657,120]
[378790543,1755017473309,-1164.76,0.00044657,120]
[378790544,1755017473355,-1266.5,0.00044657,120]
[378790545,1755017473398,-400.0,0.00044657,120]
[378790546,1755017473440,-200.43687153,0.00044657,120]
[378790547,1755017473483,-400.0,0.00044657,120]
[378790548,1755017473524,-772.05,0.00044657,120]
[378790549,1755017473564,-730.54,0.00044657,120]
[378790550,1755017473608,-491.88,0.00044657,120]
[378790551,1755017473652,-3352.61,0.00044657,120]
[378790552,1755017473698,-2120.63,0.00044657,120]
[378790553,1755017473740,-400.0,0.00044657,120]
[378790554,1755017473783,-58318.48333563,0.00044676,120]
[378790555,1755017473823,-371.2,0.00044779,120]
[378790556,1755017473864,-791.96,0.00044931,120]
[378790557,1755017473905,-739.45,0.00044931,120]
[378790558,1755017473945,-400.0,0.00044931,120]
[378790559,1755017473986,-448.58,0.00044931,120]
[378790560,1755017474028,-1164.76,0.00044931,120]
[378790561,1755017474070,-615.15,0.00044931,120]
[378790562,1755017474114,-1266.5,0.00044931,120]
[378790563,1755017474158,-400.0,0.00044931,120]
[378790564,1755017474201,-400.0,0.00044931,120]
[378790565,1755017474244,-772.05,0.00044931,120]
[378790566,1755017474285,-730.54,0.00044931,120]
[378790567,1755017474325,-491.88,0.00044931,120]
[378790568,1755017474367,-3352.61,0.00044931,120]
[378790569,1755017474410,-2120.63,0.00044931,120]
[378790570,1755017474451,-400.0,0.00044931,120]
[378790571,1755017474491,-156.8660354,0.00044955,120]
[378790572,1755017474531,-371.2,0.00045032,120]
[378790573,1755017474570,-791.96,0.00045205,120]
[378790574,1755017474613,-739.45,0.00045205,120]
[378790575,1755017474660,-400.0,0.00045205,120]
[378790576,1755017474705,-1164.76,0.00045205,120]
[378790577,1755017474749,-615.15,0.00045205,120]
[378790578,1755017474795,-1266.5,0.00045205,120]
[378790579,1755017475075,-544.75,0.00045205,120]
[378790580,1755017475120,-772.05,0.00045205,120]
[378790581,1755017475163,-730.54,0.00045205,120]
[378790582,1755017475203,-491.88,0.00045205,120]
[378790583,1755017475245,-3352.61,0.00045205,120]
[378790584,1755017475289,-2120.63,0.00045205,120]
[378790585,1755017475332,-400.0,0.00045205,120]
[378790586,1755017475375,-791.96,0.00045479,120]
[378790587,1755017475419,-739.45,0.00045479,120]
[378790588,1755017475464,-400.0,0.00045479,120]
[378790589,1755017475508,-1164.76,0.00045479,120]
[378790590,1755017475551,-615.15,0.00045479,120]
[378790591,1755017475597,-1266.5,0.00045479,120]
[378790592,1755017475642,-772.05,0.00045479,120]
[378790593,1755017475683,-730.54,0.00045479,120]
[378790594,1755017475740,-491.88,0.00045479,120]
[378790595,1755017475788,-3352.61,0.00045479,120]
[378790596,1755017475835,-2120.63,0.00045479,120]
[378790597,1755017475883,-400.0,0.00045479,120]
[378790598,1755017475931,-696.89,0.00045753,120]
[378790599,1755017475976,-791.96,0.00045753,120]
[378790600,1755017476021,-739.45,0.00045753,120]
[378790601,1755017476067,-400.0,0.00045753,120]
[378790602,1755017476113,-1164.76,0.00045753,120]
[378790603,1755017476158,-615.15,0.00045753,120]
[378790604,1755017476204,-1266.5,0.00045753,120]
[378790605,1755017476248,-772.05,0.00045753,120]
[378790606,1755017476292,-730.54,0.00045753,120]
[378790607,1755017476336,-491.88,0.00045753,120]
[378790608,1755017476381,-3352.61,0.00045753,120]
[378790609,1755017476426,-2120.63,0.00045753,120]
[378790610,1755017476478,-1826590.02410854,0.0004599,90]
[378790634,1755017492063,-400.0,0.00043835,120]
[378790635,1755017492107,-1142.6,0.00043835,120]
[378790636,1755017492151,-400.0,0.00043835,120]
[378790637,1755017492193,-628.48,0.00043835,120]
[378790638,1755017492235,-400.0,0.00043835,120]
[378790639,1755017492276,-528.4,0.00043835,120]
[378790640,1755017492317,-557.34,0.00043835,120]
[378790641,1755017492358,-489.69,0.00043835,120]
[378790642,1755017492400,-400.0,0.00043835,120]
[378790643,1755017492440,-400.0,0.00043835,120]
[378790644,1755017492480,-400.0,0.00043835,120]
[378790645,1755017492529,-550.44,0.00043835,120]
[378790646,1755017492584,-400.0,0.00043835,120]
[378790647,1755017492631,-400.0,0.00043835,120]
[378790648,1755017492674,-549.36,0.00043835,120]
[378790649,1755017492715,-1003.07,0.00043835,120]
[378790650,1755017492759,-400.0,0.00044109,120]
[378790651,1755017492801,-1142.6,0.00044109,120]
[378790652,1755017492842,-212.5,0.00044109,120]
[378790653,1755017492884,-628.48,0.00044109,120]
[378790654,1755017492925,-400.0,0.00044109,120]
[378790655,1755017493106,-528.4,0.00044109,120]
[378790656,1755017493192,-557.34,0.00044109,120]
[378790657,1755017493236,-489.69,0.00044109,120]
[378790658,1755017493279,-400.0,0.00044109,120]
[378790659,1755017493321,-400.0,0.00044109,120]
[378790660,1755017493363,-400.0,0.00044109,120]
[378790661,1755017493408,-550.44,0.00044109,120]
[378790662,1755017493451,-400.0,0.00044109,120]
[378790663,1755017493495,-236.9928468,0.00044109,120]
[378790664,1755017493538,-549.36,0.00044109,120]
[378790665,1755017493582,-1003.07,0.00044109,120]
[378790666,1755017493632,-1142.6,0.00044383,120]
[378790667,1755017493678,-628.48,0.00044383,120]
[378790668,1755017493724,-528.4,0.00044383,120]
[378790670,1755017493768,-400.0,0.00044383,120]
[378790673,1755017493813,-557.34,0.00044383,120]
[378790675,1755017493858,-489.69,0.00044383,120]
[378790676,1755017493906,-400.0,0.00044383,120]
[378790677,1755017493950,-400.0,0.00044383,120]
[378790678,1755017493996,-550.44,0.00044383,120]
[378790680,1755017494041,-400.0,0.00044383,120]
[378790682,1755017494088,-549.36,0.00044383,120]
[378790685,1755017494139,-1003.07,0.00044383,120]
[378790686,1755017494183,-1142.6,0.00044657,120]
[378790687,1755017494227,-628.48,0.00044657,120]
[378790688,1755017494269,-528.4,0.00044657,120]
[378790689,1755017494310,-400.0,0.00044657,120]
[378790690,1755017494352,-557.34,0.00044657,120]
[378790691,1755017494396,-489.69,0.00044657,120]
[378790692,1755017494437,-400.0,0.00044657,120]
[378790693,1755017494477,-400.0,0.00044657,120]
[378790694,1755017494516,-550.44,0.00044657,120]
[378790695,1755017494558,-400.0,0.00044657,120]
[378790696,1755017494600,-549.36,0.00044657,120]
[378790697,1755017494644,-1003.07,0.00044657,120]
[378790698,1755017494687,-1142.6,0.00044931,120]
[378790699,1755017494731,-628.48,0.00044931,120]
[378790700,1755017494774,-528.4,0.00044931,120]
[378790701,1755017494818,-400.0,0.00044931,120]
[378790702,1755017494863,-557.34,0.00044931,120]
[378790703,1755017494908,-489.69,0.00044931,120]
[378790704,1755017494953,-400.0,0.00044931,120]
[378790705,1755017494998,-400.0,0.00044931,120]
[378790706,1755017495044,-550.44,0.00044931,120]
[378790707,1755017495088,-400.0,0.00044931,120]
[378790708,1755017495132,-1003.07,0.00044931,120]
[378790709,1755017495176,-549.36,0.00044931,120]
[378790710,1755017495219,-1142.6,0.00045205,120]
[378790711,1755017495260,-628.48,0.00045205,120]
[378790712,1755017495302,-528.4,0.00045205,120]
[378790713,1755017495344,-400.0,0.00045205,120]
[378790714,1755017495386,-557.34,0.00045205,120]
[378790715,1755017495427,-489.69,0.00045205,120]
[378790716,1755017495467,-400.0,0.00045205,120]
[378790718,1755017495504,-400.0,0.00045205,120]
[378790719,1755017495543,-550.44,0.00045205,120]
[378790720,1755017495582,-400.0,0.00045205,120]
[378790721,1755017495622,-549.36,0.00045205,120]
[378790722,1755017495673,-1003.07,0.00045205,120]
[378790723,1755017495721,-1142.6,0.00045479,120]
[378790724,1755017495764,-628.48,0.00045479,120]
[378790725,1755017495808,-528.4,0.00045479,120]
[378790726,1755017495851,-400.0,0.00045479,120]
[378790727,1755017495893,-557.34,0.00045479,120]
[378790728,1755017495937,-489.69,0.00045479,120]
[378790729,1755017495978,-400.0,0.00045479,120]
[378790730,1755017496020,-400.0,0.00045479,120]
[378790731,1755017496062,-550.44,0.00045479,120]
[378790732,1755017496104,-400.0,0.00045479,120]
[378790733,1755017496146,-185.52,0.00045479,120]
[378790734,1755017496186,-549.36,0.00045479,120]
[378790735,1755017496225,-1003.07,0.00045479,120]
[378790736,1755017496263,-281.26548144,0.0004574,120]
[378790737,1755017496305,-400.0,0.00045753,120]
[378790738,1755017496347,-1142.6,0.00045753,120]
[378790739,1755017496388,-628.48,0.00045753,120]
[378790740,1755017496429,-528.4,0.00045753,120]
[378790741,1755017496472,-400.0,0.00045753,120]
[378790742,1755017496513,-557.34,0.00045753,120]
[378790743,1755017496558,-489.69,0.00045753,120]
[378790744,1755017496600,-400.0,0.00045753,120]
[378790745,1755017496643,-400.0,0.00045753,120]
[378790746,1755017496689,-550.44,0.00045753,120]
[378790747,1755017496733,-400.0,0.00045753,120]
[378790748,1755017496775,-549.36,0.00045753,120]
[378790749,1755017496818,-1003.07,0.00045753,120]
[378790750,1755017496863,-726007.27664314,0.0004599,90]
[378790751,1755017496906,-1443138.66172248,0.0004599,80]
[378790752,1755017496947,-661.50954806,0.0004599,90]
[378790753,1755017496992,-162.92943777,0.00046,120]
[378790754,1755017497037,-1000.0,0.00046,120]
[378790755,1755017497083,-553.91,0.00046027,120]
[378790756,1755017497128,-194.1,0.00046027,120]
[378790757,1755017497172,-540.62,0.00046027,120]
[378790758,1755017497216,-400.0,0.00046027,120]
[378790759,1755017497257,-795.2,0.00046027,120]
[378790760,1755017497299,-501.2,0.00046027,120]
[378790761,1755017497342,-335.19,0.00046027,120]
[378790762,1755017497385,-570.87,0.00046027,120]
[378790763,1755017497432,-400.0,0.00046027,120]
[378790764,1755017497475,-400.0,0.00046027,120]
[378790765,1755017497517,-445.44,0.00046027,120]
[378790766,1755017497557,-400.0,0.00046027,120]
[378790767,1755017497598,-412.63,0.00046027,120]
[378790768,1755017497640,-400.0,0.00046027,120]
[378790769,1755017497681,-547.06,0.00046027,120]
[378790770,1755017497724,-400.0,0.00046027,120]
[378790771,1755017497765,-400.0,0.00046027,120]
[378790772,1755017497806,-241.91,0.00046027,120]
[378790773,1755017497848,-458.75,0.00046027,120]
[378790774,1755017497890,-400.0,0.00046027,120]
[378790775,1755017497931,-416.84,0.00046027,120]
[378790776,1755017498210,-232.53,0.00046027,120]
[378790777,1755017498251,-4244.54,0.00046027,120]
[378790778,1755017498292,-400.0,0.00046027,120]
[378790779,1755017498333,-522.59,0.00046027,120]
[378790780,1755017498373,-401.9,0.00046027,120]
[378790781,1755017498415,-810.37,0.00046027,120]
[378790782,1755017498455,-400.0,0.00046027,120]
[378790783,1755017498497,-569.18,0.00046027,120]
[378790784,1755017498536,-432.13,0.00046027,120]
[378790785,1755017498575,-400.0,0.00046027,120]
[378790786,1755017498615,-400.0,0.00046027,120]
[378790787,1755017498659,-400.0,0.00046027,120]
[378790788,1755017498701,-502.67,0.00046027,120]
[378790789,1755017498742,-452.19,0.00046027,120]
[378790790,1755017498781,-400.0,0.00046027,120]
[378790792,1755017498821,-451.19,0.00046027,120]
[378790793,1755017498863,-493.54,0.00046027,120]
[378790794,1755017498907,-400.0,0.00046027,120]
[378790796,1755017498952,-400.0,0.00046027,120]
[378790797,1755017498996,-168.46,0.00046027,120]
[378790798,1755017499038,-832.37,0.00046027,120]
[378790799,1755017499080,-400.0,0.00046027,120]
[378790800,1755017499122,-546.65,0.00046027,120]
[378790802,1755017499165,-541.47,0.00046027,120]
[378790803,1755017499206,-400.0,0.00046027,120]
[378790804,1755017499247,-155.74991346,0.00046027,120]
[378790805,1755017499287,-425.17,0.00046027,120]
[378790806,1755017499329,-435.72,0.00046027,120]
[378790807,1755017499373,-1389.22,0.00046027,120]
[378790808,1755017499416,-576.88,0.00046027,120]
[378790809,1755017499459,-790.13,0.00046027,120]
[378790810,1755017499502,-766.33,0.00046027,120]
[378790811,1755017499543,-487.87,0.00046027,120]
[378790812,1755017499585,-513.97,0.00046027,120]
[378790813,1755017499637,-813.76,0.00046027,120]
[378790814,1755017499684,-942.23,0.00046027,120]
[378790815,1755017499728,-887.78,0.00046027,120]
[378790816,1755017499772,-400.0,0.00046027,120]
[378790817,1755017499818,-891.24,0.00046027,120]
[378790818,1755017499862,-679.88,0.00046027,120]
[378790819,1755017499908,-451.64829787,0.00046027,120]
[378790820,1755017499953,-506.0,0.00046027,120]
[378790821,1755017499997,-400.0,0.00046027,120]
[378790822,1755017500042,-908.54,0.00046027,120]
[378790823,1755017500085,-865.53,0.00046027,120]
[378790824,1755017500129,-401.36,0.00046027,120]
[378790825,1755017500172,-597.81,0.00046027,120]
[378790826,1755017500215,-844.1,0.00046027,120]
[378790827,1755017500258,-705.63,0.00046027,120]
[378790828,1755017500301,-555.62,0.00046027,120]
[378790829,1755017500345,-400.0,0.00046027,120]
[378790830,1755017500390,-1224.45,0.00046027,120]
[378790831,1755017500434,-453.33,0.00046027,120]
[378790833,1755017500475,-400.0,0.00046027,120]
[378790834,1755017500516,-197.4,0.00046027,120]
[378790835,1755017500558,-683.5,0.00046027,120]
[378790836,1755017500600,-630.8,0.00046027,120]
[378790837,1755017500641,-630.33,0.00046027,120]
[378790838,1755017500708,-569.66,0.00046027,120]
[378790840,1755017500763,-567.65,0.00046027,120]
[378790841,1755017500821,-778.34,0.00046027,120]
[378790842,1755017500877,-597.39,0.00046027,120]
[378790843,1755017500932,-701.34,0.00046027,120]
[378790844,1755017500989,-418.66,0.00046027,120]
[378790845,1755017501046,-335.35,0.00046027,120]
[378790846,1755017501102,-773.73,0.00046027,120]
[378790847,1755017501157,-400.0,0.00046027,120]
[378790848,1755017501212,-805.87,0.00046027,120]
[378790849,1755017501260,-696.89,0.00046027,120]
[378790850,1755017501314,-791.96,0.00046027,120]
[378790851,1755017501364,-739.45,0.00046027,120]
[378790852,1755017501414,-438.1,0.00046027,120]
[378790853,1755017501462,-1164.76,0.00046027,120]
[378790854,1755017501513,-615.15,0.00046027,120]
[378790855,1755017501569,-1266.5,0.00046027,120]
[378790856,1755017501619,-772.05,0.00046027,120]
[378790857,1755017501671,-491.88,0.00046027,120]
[378790858,1755017501720,-730.54,0.00046027,120]
[378790859,1755017501771,-3352.61,0.00046027,120]
[378790860,1755017501821,-2120.63,0.00046027,120]
[378790861,1755017501870,-400.0,0.00046027,120]
[378790862,1755017501920,-1142.6,0.00046027,120]
[378790863,1755017501970,-628.48,0.00046027,120]
[378790864,1755017502021,-528.4,0.00046027,120]
[378790865,1755017502071,-400.0,0.00046027,120]
[378790866,1755017502120,-557.34,0.00046027,120]
[378790867,1755017502174,-489.69,0.00046027,120]
[378790868,1755017502225,-400.0,0.00046027,120]
[378790869,1755017502274,-400.0,0.00046027,120]
[378790870,1755017502325,-550.44,0.00046027,120]
[378790871,1755017502374,-400.0,0.00046027,120]
[378790872,1755017502425,-549.36,0.00046027,120]
[378790873,1755017502473,-1003.07,0.00046027,120]
[378790874,1755017502522,-185.52,0.00046294,120]
[378790876,1755017502568,-553.91,0.00046301,120]
[378790877,1755017502616,-540.62,0.00046301,120]
[378790878,1755017502670,-400.0,0.00046301,120]
[378790879,1755017502736,-795.2,0.00046301,120]
[378790880,1755017502789,-501.2,0.00046301,120]
[378790881,1755017502840,-570.87,0.00046301,120]
[378790882,1755017502888,-400.0,0.00046301,120]
[378790883,1755017502941,-320.82682847,0.00046301,120]
[378790884,1755017502985,-445.44,0.00046301,120]
[378790885,1755017503028,-400.0,0.00046301,120]
[378790886,1755017503072,-412.63,0.00046301,120]
[378790887,1755017503115,-400.0,0.00046301,120]
[378790888,1755017503161,-547.06,0.00046301,120]
[378790889,1755017503204,-400.0,0.00046301,120]
[378790890,1755017503246,-353.46,0.00046301,120]
[378790891,1755017503290,-458.75,0.00046301,120]
[378790892,1755017503331,-400.0,0.00046301,120]
[378790893,1755017503373,-416.84,0.00046301,120]
[378790894,1755017503415,-4244.54,0.00046301,120]
[378790895,1755017503459,-460.3,0.00046301,120]
[378790896,1755017503503,-522.59,0.00046301,120]
[378790897,1755017503905,-401.9,0.00046301,120]
[378790898,1755017503958,-810.37,0.00046301,120]
[378790899,1755017504001,-400.0,0.00046301,120]
[378790900,1755017504043,-569.18,0.00046301,120]
[378790901,1755017504086,-432.13,0.00046301,120]
[378790902,1755017504128,-400.0,0.00046301,120]
[378790903,1755017504171,-400.0,0.00046301,120]
[378790904,1755017504211,-224.55,0.00046301,120]
[378790905,1755017504251,-502.67,0.00046301,120]
[378790906,1755017504292,-400.0,0.00046301,120]
[378790907,1755017504334,-451.19,0.00046301,120]
[378790908,1755017504376,-493.54,0.00046301,120]
[378790909,1755017504419,-400.0,0.00046301,120]
[378790910,1755017504460,-432.20191439,0.00046301,120]
[378790911,1755017504503,-832.37,0.00046301,120]
[378790912,1755017504545,-400.0,0.00046301,120]
[378790913,1755017504588,-546.65,0.00046301,120]
[378790914,1755017504634,-541.47,0.00046301,120]
[378790915,1755017504679,-292.57,0.00046301,120]
[378790916,1755017504723,-425.17,0.00046301,120]
[378790917,1755017504766,-435.72,0.00046301,120]
[378790918,1755017504810,-1389.22,0.00046301,120]
[378790919,1755017504851,-576.88,0.00046301,120]
[378790920,1755017504894,-790.13,0.00046301,120]
[378790921,1755017504936,-766.33,0.00046301,120]
[378790922,1755017504980,-487.87,0.00046301,120]
[378790923,1755017505023,-513.97,0.00046301,120]
[378790924,1755017505068,-813.76,0.00046301,120]
[378790925,1755017505110,-942.23,0.00046301,120]
[378790926,1755017505152,-887.78,0.00046301,120]
[378790927,1755017505193,-492.01,0.00046301,120]
[378790928,1755017505234,-891.24,0.00046301,120]
[378790929,1755017505276,-679.88,0.00046301,120]
[378790930,1755017505318,-506.0,0.00046301,120]
[378790931,1755017505360,-523.09,0.00046301,120]
[378790932,1755017505402,-908.54,0.00046301,120]
[378790933,1755017505446,-865.53,0.00046301,120]
[378790934,1755017505492,-401.36,0.00046301,120]
[378790935,1755017505536,-597.81,0.00046301,120]
[378790936,1755017505583,-844.1,0.00046301,120]
[378790937,1755017505629,-705.63,0.00046301,120]
[378790938,1755017505676,-555.62,0.00046301,120]
[378790939,1755017505721,-400.0,0.00046301,120]
[378790940,1755017505765,-1224.45,0.00046301,120]
[378790941,1755017505810,-453.33,0.00046301,120]
[378790942,1755017505854,-542.55304696,0.00046301,120]
[378790943,1755017505899,-683.5,0.00046301,120]
[378790944,1755017505943,-630.8,0.00046301,120]
[378790945,1755017505987,-630.33,0.00046301,120]
[378790946,1755017506031,-569.66,0.00046301,120]
[378790947,1755017506075,-567.65,0.00046301,120]
[378790948,1755017506117,-778.34,0.00046301,120]
[378790949,1755017506163,-597.39,0.00046301,120]
[378790950,1755017506207,-701.34,0.00046301,120]
[378790951,1755017506251,-418.66,0.00046301,120]
[378790952,1755017506296,-773.73,0.00046301,120]
[378790953,1755017506339,-505.78,0.00046301,120]
[378790954,1755017506381,-805.87,0.00046301,120]
[378790955,1755017506425,-696.89,0.00046301,120]
[378790956,1755017506467,-791.96,0.00046301,120]
[378790957,1755017506510,-739.45,0.00046301,120]
[378790958,1755017506553,-1164.76,0.00046301,120]
[378790960,1755017506594,-615.15,0.00046301,120]
[378790961,1755017506639,-1266.5,0.00046301,120]
[378790962,1755017506682,-772.05,0.00046301,120]
[378790963,1755017506724,-491.88,0.00046301,120]
[378790964,1755017506765,-730.54,0.00046301,120]
[378790965,1755017506807,-3352.61,0.00046301,120]
[378790966,1755017506850,-2120.63,0.00046301,120]
[378790967,1755017506894,-400.0,0.00046301,120]
[378790968,1755017506937,-1142.6,0.00046301,120]
[378790969,1755017506980,-628.48,0.00046301,120]
[378790970,1755017507023,-528.4,0.00046301,120]
[378790971,1755017507068,-400.0,0.00046301,120]
[378790972,1755017507113,-557.34,0.00046301,120]
[378790973,1755017507157,-489.69,0.00046301,120]
[378790974,1755017507199,-364.86,0.00046301,120]
[378790975,1755017507241,-400.0,0.00046301,120]
[378790976,1755017507283,-550.44,0.00046301,120]
[378790977,1755017507325,-400.0,0.00046301,120]
[378790978,1755017507367,-549.36,0.00046301,120]
[378790979,1755017507410,-1003.07,0.00046301,120]
[378790980,1755017507453,-553.91,0.00046575,120]
[378790981,1755017507498,-540.62,0.00046575,120]
[378790982,1755017507542,-400.0,0.00046575,120]
[378790983,1755017507589,-795.2,0.00046575,120]
[378790985,1755017507632,-501.2,0.00046575,120]
[378790986,1755017507677,-570.87,0.00046575,120]
[378790987,1755017507717,-400.0,0.00046575,120]
[378790988,1755017507759,-445.44,0.00046575,120]
[378790989,1755017507803,-400.0,0.00046575,120]
[378790990,1755017507847,-412.63,0.00046575,120]
[378790991,1755017507893,-400.0,0.00046575,120]
[378790992,1755017507936,-547.06,0.00046575,120]
[378790993,1755017507979,-400.0,0.00046575,120]
[378790994,1755017508023,-458.75,0.00046575,120]
[378790995,1755017508072,-400.0,0.00046575,120]
[378790996,1755017508117,-416.84,0.00046575,120]
[378790997,1755017508160,-4244.54,0.00046575,120]
[378790998,1755017508203,-522.59,0.00046575,120]
[378790999,1755017508245,-401.9,0.00046575,120]
[378791000,1755017508289,-810.37,0.00046575,120]
[378791001,1755017508333,-400.0,0.00046575,120]
[378791002,1755017508376,-569.18,0.00046575,120]
[378791003,1755017508420,-432.13,0.00046575,120]
[378791004,1755017508463,-400.0,0.00046575,120]
[378791005,1755017508505,-400.0,0.00046575,120]
[378791006,1755017508546,-502.67,0.00046575,120]